{"text_format":"3","workbook":"xlsx","n_sheets":2,"sheets":["Tanári teendőlista"," Listaadatok"],"not_rendered":{"defined_names":6},"read":"whole","date_system":"1900"}

{"sheet":"Tanári teendőlista","index":0,"n_rows":10,"n_cols":10,"rows_kept":10,"merged":[[0,1,0,2],[0,4,0,8],[2,9,6,9]]}
[null,"Tanári teendőlista",null,"Listaadatok","Ebben a cellában az állapotot jelölő színek magyarázata olvasható: A még el nem kezdett teendők normál stílusúak, a folyamatban lévők színe R=91 G=133 B=49, a ma esedékeseké R=118 G=88 B=0, a felfüggesztetteké R=109 G=66 B=111, a készek át vannak húzva, a töröltek színe R=191 G=191 B=191, a késésben lévőké R=191 G=33 B=28."]
[null,"TÉTEL","KATEGÓRIA","KEZDÉSI DÁTUM","HATÁRIDŐ","HÁTRALÉVŐ NAP","ÁLLAPOT","MEGJEGYZÉSEK"]
[null,"Fiókok kitakarítása","Iroda",{"$f":"DATE(YEAR(TODAY()),MONTH(TODAY())-1,6)","v":"2018-04-06"},{"$f":"DATE(YEAR(TODAY()),MONTH(TODAY())-1,16)","v":"2018-04-16"},{"$f":"IFERROR(IF(COUNT(Lista[[#This Row],[KEZDÉSI DÁTUM]]:Lista[[#This Row],[HATÁRIDŐ]])<>2,\"\",IF(OR(Lista[[#This Row],[ÁLLAPOT]]=\"Kész\",Lista[[#This Row],[ÁLLAPOT]]=\"Törölve\",Lista[[#This Row],[ÁLLAPOT]]=\"Felfüggesztve\"),\"\",Lista[[#This Row],[HATÁRIDŐ]]-TODAY())),\"\")","v":""},"Kész",null,null,"Ebben a cellában az Állapot szeletelő szerepel. A szeletelőben a kívánt állapotot kiválasztva szűrheti a listát. Ha több elemet szeretne kijelölni, nyomja le a CTRL billentyűt."]
[null,"Matricák megrendelése","Kellékek",{"$f":"DATE(YEAR(TODAY()),MONTH(TODAY())-1,11)","v":"2018-04-11"},{"$f":"DATE(YEAR(TODAY()),MONTH(TODAY())-1,21)","v":"2018-04-21"},{"$f":"IFERROR(IF(COUNT(Lista[[#This Row],[KEZDÉSI DÁTUM]]:Lista[[#This Row],[HATÁRIDŐ]])<>2,\"\",IF(OR(Lista[[#This Row],[ÁLLAPOT]]=\"Kész\",Lista[[#This Row],[ÁLLAPOT]]=\"Törölve\",Lista[[#This Row],[ÁLLAPOT]]=\"Felfüggesztve\"),\"\",Lista[[#This Row],[HATÁRIDŐ]]-TODAY())),\"\")","v":""},"Kész"]
[null,"Padló felmosása és viaszolása","Egyéb",{"$f":"DATE(YEAR(TODAY()),MONTH(TODAY()-1),DAY(TODAY())-25)","v":"2018-04-15"},{"$f":"DATE(YEAR(TODAY()),MONTH(TODAY())-1,26)","v":"2018-04-26"},{"$f":"IFERROR(IF(COUNT(Lista[[#This Row],[KEZDÉSI DÁTUM]]:Lista[[#This Row],[HATÁRIDŐ]])<>2,\"\",IF(OR(Lista[[#This Row],[ÁLLAPOT]]=\"Kész\",Lista[[#This Row],[ÁLLAPOT]]=\"Törölve\",Lista[[#This Row],[ÁLLAPOT]]=\"Felfüggesztve\"),\"\",Lista[[#This Row],[HATÁRIDŐ]]-TODAY())),\"\")","v":""},"Kész"]
[null,"Névcímkék elkészítése","Kellékek",{"$f":"DATE(YEAR(TODAY()),MONTH(TODAY())-1,21)","v":"2018-04-21"},{"$f":"DATE(YEAR(TODAY()),MONTH(TODAY())-1,1)","v":"2018-04-01"},{"$f":"IFERROR(IF(COUNT(Lista[[#This Row],[KEZDÉSI DÁTUM]]:Lista[[#This Row],[HATÁRIDŐ]])<>2,\"\",IF(OR(Lista[[#This Row],[ÁLLAPOT]]=\"Kész\",Lista[[#This Row],[ÁLLAPOT]]=\"Törölve\",Lista[[#This Row],[ÁLLAPOT]]=\"Felfüggesztve\"),\"\",Lista[[#This Row],[HATÁRIDŐ]]-TODAY())),\"\")","v":""},"Felfüggesztve"]
[null,"Negyedévi írásbeli dolgozatok osztályozása","Értékelés",{"$f":"DATE(YEAR(TODAY()),MONTH(TODAY())-1,26)","v":"2018-04-26"},{"$f":"TODAY()-5","v":"2018-05-05"},{"$f":"IFERROR(IF(COUNT(Lista[[#This Row],[KEZDÉSI DÁTUM]]:Lista[[#This Row],[HATÁRIDŐ]])<>2,\"\",IF(OR(Lista[[#This Row],[ÁLLAPOT]]=\"Kész\",Lista[[#This Row],[ÁLLAPOT]]=\"Törölve\",Lista[[#This Row],[ÁLLAPOT]]=\"Felfüggesztve\"),\"\",Lista[[#This Row],[HATÁRIDŐ]]-TODAY())),\"\")","v":-5},"Késésben"]
[null,"Az engedélylapokra emlékeztető e-mail","Telefonhívás",{"$f":"DATE(YEAR(TODAY()),MONTH(TODAY()),1)","v":"2018-05-01"},{"$f":"TODAY()","v":"2018-05-10"},{"$f":"IFERROR(IF(COUNT(Lista[[#This Row],[KEZDÉSI DÁTUM]]:Lista[[#This Row],[HATÁRIDŐ]])<>2,\"\",IF(OR(Lista[[#This Row],[ÁLLAPOT]]=\"Kész\",Lista[[#This Row],[ÁLLAPOT]]=\"Törölve\",Lista[[#This Row],[ÁLLAPOT]]=\"Felfüggesztve\"),\"\",Lista[[#This Row],[HATÁRIDŐ]]-TODAY())),\"\")","v":""},"Törölve"]
[null,"Szóbeli feleletek osztályozása","Iroda",{"$f":"DATE(YEAR(TODAY()),MONTH(TODAY()),7)","v":"2018-05-07"},{"$f":"DATE(YEAR(TODAY()),MONTH(TODAY()),17)","v":"2018-05-17"},{"$f":"IFERROR(IF(COUNT(Lista[[#This Row],[KEZDÉSI DÁTUM]]:Lista[[#This Row],[HATÁRIDŐ]])<>2,\"\",IF(OR(Lista[[#This Row],[ÁLLAPOT]]=\"Kész\",Lista[[#This Row],[ÁLLAPOT]]=\"Törölve\",Lista[[#This Row],[ÁLLAPOT]]=\"Felfüggesztve\"),\"\",Lista[[#This Row],[HATÁRIDŐ]]-TODAY())),\"\")","v":7},"Folyamatban"]
[null,"Ceruzák kihegyezése","Kellékek",{"$f":"DATE(YEAR(TODAY()),MONTH(TODAY()),11)","v":"2018-05-11"},{"$f":"DATE(YEAR(TODAY()),MONTH(TODAY()),10)","v":"2018-05-10"},{"$f":"IFERROR(IF(COUNT(Lista[[#This Row],[KEZDÉSI DÁTUM]]:Lista[[#This Row],[HATÁRIDŐ]])<>2,\"\",IF(OR(Lista[[#This Row],[ÁLLAPOT]]=\"Kész\",Lista[[#This Row],[ÁLLAPOT]]=\"Törölve\",Lista[[#This Row],[ÁLLAPOT]]=\"Felfüggesztve\"),\"\",Lista[[#This Row],[HATÁRIDŐ]]-TODAY())),\"\")","v":0},"Folyamatban"]

{"sheet":" Listaadatok","index":1,"n_rows":13,"n_cols":3,"rows_kept":13}
[null,"Listaadatok","Tanári teendőlista"]
[null,"Kategória"]
[null,"Iroda"]
[null,"Kellékek"]
[null,"Beszerzendő"]
[null,"Telefonhívás"]
[null,"Új ötletek"]
[null,"Értékelés"]
[null,"Csapat"]
[null,"Beavatkozás"]
[null,"Számítógép"]
[null,"Személyes"]
[null,"Egyéb"]